Cogmind - Beta 13 @@@ ROGUE MODE // 2024.06.08 @ 12:30:15 Player: MarKhan Result: Destroyed by Piercing Trap Performance ------------- Evolutions (0) 0 Regions Visited (3) 600 Robots Destroyed (21) 105 Value Destroyed (452) 452 Prototype IDs (2) 40 Alien Tech Used (0) 0 Bonus (0) 0 TOTAL SCORE: 1197 Bonus ------- None Cogmind --------- Core Integrity 0/250 Matter 298/300 Energy 246/250 System Corruption 0% Temperature Cool (2) Movement Treading (160) Location -10/Subcaves Parts ------- > --- POWER (1) -------- Ion Engine > --- PROPULSION (2) --- Light Treads Light Treads > --- UTILITY (2) ------ Medium Storage Unit Sensor Array > --- WEAPON (2) ------- Assault Rifle Light Assault Rifle > --- INVENTORY (10) --- Light Treads Heat Sink Large Battery (200) Signal Interpreter Peak State ------------ > --- POWER ------------ Light Ion Engine > --- PROPULSION ------- Aluminum Leg Aluminum Leg > --- UTILITY ---------- Medium Storage Unit Improved Terrain Scanner > --- WEAPON ----------- Mining Claw Mining Claw > --- INVENTORY -------- Ion Engine Light Treads Light Treads Light Treads Heat Sink Large Battery Sensor Array Signal Interpreter Assault Rifle Light Assault Rifle [Rating: 10] Favorites ----------- Power Light Ion Engine Engine Light Ion Engine Propulsion Aluminum Leg Treads Light Treads Leg Aluminum Leg Utility Medium Storage Unit Device Sensor Array Storage Medium Storage Unit Weapon Mining Claw Ballistic Gun Assault Rifle Slashing Weapon Mining Claw Build | -11 -10 -10 -10 ------- Run | Yrd Mat Min Sub Slots Evolved . | . . . . Power . | . . . . Propulsion . | . . . . Utility . | . . . . Weapon . | . . . . Parts Attached 29 | 7 14 2 6 Power 6 | 1 3 1 1 Engine 6 | 1 3 1 1 Core . | . . . . Reactor . | . . . . Propulsion 9 | 2 5 . 2 Treads 4 | 2 . . 2 Leg 5 | . 5 . . Wheel . | . . . . Hover . | . . . . Flight . | . . . . Utility 7 | 2 3 1 1 Device 5 | 1 2 1 1 Storage 2 | 1 1 . . Processor . | . . . . Hackware . | . . . . Protection . | . . . . Artifact . | . . . . Weapon 7 | 2 3 . 2 Energy Gun . | . . . . Energy Cannon . | . . . . Ballistic Gun 5 | 2 1 . 2 Ballistic Cannon . | . . . . Launcher . | . . . . Special Weapon . | . . . . Impact Weapon . | . . . . Slashing Weapon 2 | . 2 . . Piercing Weapon . | . . . . Special Melee Weapon . | . . . . Unidentified Prototypes . | . . . . Parts Lost 7 | . 1 . 6 Power 1 | . . . 1 Propulsion 2 | . . . 2 Utility 2 | . 1 . 1 Weapon 2 | . . . 2 Highest Loss Streak 3 | . 1 . 3 To Critical Strikes . | . . . . Average Slot Usage (%) 96 | . 96 100 93 Engine 13 | . 14 14 10 Treads 7 | . 8 . 10 Leg 20 | . 19 28 17 Device 11 | . 10 14 13 Storage 14 | . 14 14 14 Ballistic Gun 5 | . 7 . 7 Slashing Weapon 21 | . 20 28 17 Naked Turns . | . . . . Heaviest Build 20 | 12 20 20 19 Greatest Support 40 | 40 40 20 40 Greatest Overweight (x) 1 | . 1 . . Average Overweight (x) . | . . . . Largest Inventory Capacity 10 | 8 10 10 10 Average Capacity 9 | 7 9 10 10 Most Carried 10 | 8 10 10 10 Average Carried 8 | 5 8 10 8 Final Capacity 10 | 8 10 10 10 Final Carried 10 | 8 10 10 4 Class Distribution -------------------- 66% | Scavenger-Mutant 33% | Mutant Dominant Class ---------------- Scavenger-Mutant | -10/Materials Scavenger-Mutant | -10/Mines Scavenger-Mutant | -10/Subcaves Resources | -11 -10 -10 -10 ----------- Run | Yrd Mat Min Sub Matter Collected 568 | 301 180 10 77 Remotely . | . . . . Salvage Created 677 | 82 489 29 77 Parts 42 | 10 26 3 3 Haulers Intercepted 2 | . 2 . . Recyclers Shooed . | . . . . Parts Field Recycled . | . . . . Retrieved Matter . | . . . . Parts Self-Destructed 2 | . . . 2 Prevented . | . . . . Kills | -11 -10 -10 -10 ------- Run | Yrd Mat Min Sub Combat Hostiles Destroyed 14 | . 10 2 2 Melee 10 | . 7 2 1 Guns 4 | . 3 . 1 Classes Destroyed 6 | 1 4 . 1 Tunneler 4 | 4 . . . Hauler 2 | . 2 . . Watcher 1 | . 1 . . Swarmer 5 | . 3 2 . Grunt 7 | . 7 . . Subdweller 2 | . . . 2 Best Kill Streak 3 | 2 3 1 1 Combat Bots Only 3 | . 3 1 1 Max Kills in Single Turn 1 | 1 1 1 1 Gunslinging . | . . . . Exploded . | . . . . Melee 1 | . 1 1 1 Uniques/NPCs Destroyed . | . . . . Combat | -11 -10 -10 -10 -------- Run | Yrd Mat Min Sub Hostile Shots Fired 126 | . 62 21 43 Missed 37 | . 17 7 13 Damage Taken 1265 | . 481 111 673 Core 256 | . 93 12 151 Absorbed by Shields . | . . . . Core Remaining (%) 100 | 100 . . . Volleys Fired 25 | 8 11 . 6 Largest 2 | 2 2 . 2 Hottest 40 | 40 40 . 40 Shots Fired 50 | 16 22 . 12 Gun 50 | 16 22 . 12 Cannon . | . . . . Launcher . | . . . . Special . | . . . . Kinetic 50 | 16 22 . 12 Thermal . | . . . . Explosive . | . . . . Electromagnetic . | . . . . Robot Hit Streak 8 | 4 4 . 8 Robot Miss Streak 3 | 2 3 . 2 Penetration Max . | . . . . Secondary Targets 2 | . 2 . . Max Gunslinging Chain 1 | . 1 . . Shots Hit Robots 70 | 8 32 6 24 Core Hits 30 | 5 18 2 5 Critical Kills . | . . . . Critical Parts Destroyed . | . . . . Critical Strikes . | . . . . Melee Attacks 64 | . 35 11 18 Impact . | . . . . Slashing 64 | . 35 11 18 Piercing . | . . . . Sneak Attacks 2 | . 2 . . Combat Hostiles . | . . . . Follow-up Attacks 4 | . 4 . . Damage Inflicted 1303 | 92 658 118 435 Guns 333 | 92 136 . 105 Cannons . | . . . . Explosions . | . . . . Melee 970 | . 522 118 330 Ramming . | . . . . Kinetic 333 | 92 136 . 105 Thermal . | . . . . Explosive . | . . . . Electromagnetic . | . . . . Impact . | . . . . Slashing 970 | . 522 118 330 Piercing . | . . . . Highest Corruption . | . . . . Average Corruption . | . . . . Corruption Purged . | . . . . Corruption Blocked . | . . . . Overload Shots . | . . . . Overflow Damage 2 | . . 2 . Projectiles . | . . . . Explosions . | . . . . Melee 2 | . . 2 . Knockbacks . | . . . . Impact . | . . . . Kinetic . | . . . . Secondary . | . . . . Self-Inflicted Damage . | . . . . Shots . | . . . . Rammed . | . . . . Targets Rammed . | . . . . Kicked . | . . . . Crushed . | . . . . Highest Temperature . | . . . . Average Temperature . | . . . . Received Heat Transfer 381 | . 201 . 180 Siege Activations . | . . . . Robots Corrupted . | . . . . Combat Hostiles . | . . . . Parts Fried . | . . . . Impact Corruptions . | . . . . Robots Melted . | . . . . Combat Hostiles . | . . . . Parts Melted . | . . . . Heat Transferred . | . . . . Parts Sabotaged . | . . . . Parts Stolen . | . . . . Parts Stripped . | . . . . Power Chain Reactions . | . . . . Alert | -11 -10 -10 -10 ------- Run | Yrd Mat Min Sub Peak Influence 269 | 20 269 66 . Initial 16 | . 13 16 . Average 86 | 9 112 63 . Maximum Alert Level 1 | . 1 . . Low Security (%) 95 | 100 92 100 . Level 1 4 | . 7 . . Level 2 . | . . . . Level 3 . | . . . . Level 4 . | . . . . Level 5 . | . . . . High Security . | . . . . Max Security . | . . . . Squads Dispatched 2 | . 2 . . Investigation 2 | . 2 . . Extermination . | . . . . Reinforcement . | . . . . Assault . | . . . . Garrison . | . . . . Intercept . | . . . . Searches Triggered . | . . . . Construction Impeded . | . . . . Haulers Reinforced . | . . . . Active Scanning Responses . | . . . . Cargo Convoy Interrupts . | . . . . Stealth | -11 -10 -10 -10 --------- Run | Yrd Mat Min Sub Distress Signals . | . . . . Communications Jammed . | . . . . Distress Signals . | . . . . Times Spotted 21 | . 16 3 2 Peak Tracking Total 4 | . 4 3 2 Tactical Retreats 1 | . 1 . . Traps | -11 -10 -10 -10 ------- Run | Yrd Mat Min Sub Traps Triggered 2 | . 1 . 1 Indirectly . | . . . . Trap Hack Attempts . | . . . . Triggered . | . . . . Disarmed . | . . . . Reprogrammed . | . . . . Reused . | . . . . Traps Extracted . | . . . . Installed . | . . . . Triggered . | . . . . Machines | -11 -10 -10 -10 ---------- Run | Yrd Mat Min Sub Machines Disabled 1 | . 1 . . Max in Single Turn 1 | . 1 . . Machines Repaired . | . . . . Machines Dismantled . | . . . . Machines Sabotaged . | . . . . Overloaded Fab Kills . | . . . . Hacking | -11 -10 -10 -10 --------- Run | Yrd Mat Min Sub Machines Accessed 9 | . 9 . . Terminals 8 | . 8 . . Fabricators . | . . . . Repair Stations . | . . . . Recycling Units 1 | . 1 . . Scanalyzers . | . . . . Garrison Access . | . . . . Total Hacks 37 | . 37 . . Successful 20 | . 20 . . Failed 17 | . 17 . . Catastrophic 4 | . 4 . . Database Lockouts . | . . . . Manual 17 | . 17 . . Terminals 32 | . 32 . . Fabricators . | . . . . Repair Stations . | . . . . Recycling Units 5 | . 5 . . Scanalyzers . | . . . . Garrison Access . | . . . . Terminal Hacks 13 | . 13 . . Record 1 | . 1 . . Part Schematic 1 | . 1 . . Prototype ID Bank 1 | . 1 . . Branch Access Points 1 | . 1 . . Terminal Index 1 | . 1 . . Alert Level 3 | . 3 . . Locate Traps 1 | . 1 . . Dispatch Records 1 | . 1 . . Maintenance Status 1 | . 1 . . Recall Investigation 1 | . 1 . . Hauler Manifests 1 | . 1 . . Fabricator Hacks . | . . . . Repair Station Hacks . | . . . . Recycling Unit Hacks 2 | . 2 . . Report Inventory 2 | . 2 . . Scanalyzer . | . . . . Garrison Access Hacks . | . . . . Unauthorized Hacks 5 | . 5 . . Terminals 4 | . 4 . . Botnet 4 | . 4 . . Fabricators . | . . . . Repair Stations . | . . . . Recycling Units 1 | . 1 . . Monitor 1 | . 1 . . Scanalyzers . | . . . . Garrison Access . | . . . . Data Cores Recovered . | . . . . Used . | . . . . Hacking Detections 9 | . 9 . . Full Trace Events 2 | . 2 . . Feedback Events . | . . . . Feedback Blocked . | . . . . Robot Schematics Acquired . | . . . . Robots Built . | . . . . Authchips . | . . . . Time . | . . . . Total Robot Build Rating . | . . . . Part Schematics Acquired 1 | . 1 . . Parts Built . | . . . . Authchips . | . . . . Time . | . . . . Total Part Build Rating . | . . . . Parts Repaired . | . . . . Time . | . . . . Parts Recycled . | . . . . Recycled Matter . | . . . . Retrieved Matter . | . . . . Retrieved Components . | . . . . Parts Scanalyzed . | . . . . Part Schematics Acquired . | . . . . Parts Damaged . | . . . . Bothacking | -11 -10 -10 -10 ------------ Run | Yrd Mat Min Sub Used RIF Installer . | . . . . Robots Hacked . | . . . . Non-combat . | . . . . Combat . | . . . . Robot Hacks Applied . | . . . . Relay Couplers Released . | . . . . Fabnet Peak Effective % . | . . . . Robots Rewired . | . . . . Allies Hacked . | . . . . Hacks Repelled . | . . . . Allies | -11 -10 -10 -10 -------- Run | Yrd Mat Min Sub Total Allies . | . . . . Largest Group . | . . . . Highest-Rated Group . | . . . . Highest-Rated Ally . | . . . . Total Orders . | . . . . Ally Attacks . | . . . . Total Damage . | . . . . Kills . | . . . . Allies Corrupted . | . . . . Allies Melted . | . . . . Intel | -11 -10 -10 -10 ------- Run | Yrd Mat Min Sub Robot Analysis Total . | . . . . Derelict Logs Recovered 2 | . . . 2 Drone Launches . | . . . . Drone Recoveries . | . . . . Exploration | -11 -10 -10 -10 ------------- Run | Yrd Mat Min Sub Turns Passed 1936 | 229 1029 354 324 Spaces Moved 1026 | 122 643 142 119 Core 7 | 7 . . . Treads 310 | 115 141 . 54 Legs 709 | . 502 142 65 Wheels . | . . . . Hover . | . . . . Flight . | . . . . Fastest Speed 50 | 50 120 120 120 Average Speed 131 | 153 128 120 138 Slowest Speed 190 | 160 190 120 160 Overloaded Moves . | . . . . Propulsion Burnouts . | . . . . Robots Hopped . | . . . . Cave-ins Triggered . | . . . . Exploration Rate (%) 30 | 7 82 28 6 Regions Visited 3 Branch Regions 2 Pre-discovered Areas . | . . . . Known Exits Taken 1 | . 1 . . Unknown Exits Taken 2 | 1 . 1 . Scrap Searched . | . . . . Spaces Dug 2 | . 2 . . Terrain Destroyed 2 | . 2 . . Melee 2 | . 2 . . Projectile . | . . . . AOE . | . . . . Terrain Rammed . | . . . . Walls Destroyed . | . . . . Machines Disabled . | . . . . Actions | -11 -10 -10 -10 --------- Run | Yrd Mat Min Sub Total 1454 | 146 772 303 233 Wait 279 | 2 45 148 84 Move 1023 | 121 642 141 119 Hop . | . . . . Pick Up 20 | 8 12 . . Fast Attach 10 | 7 3 . . Attach 6 | . . . 6 Detach . | . . . . Swap 13 | . 11 2 . Drop 21 | . 20 1 . Fire 25 | 8 11 . 6 Melee 57 | . 28 11 18 Ram . | . . . . Kick . | . . . . Crush . | . . . . Escape Stasis . | . . . . Rewire . | . . . . Trap . | . . . . Miscellaneous . | . . . . Route ------- -11/Scrapyard -10/Materials (discovered 3 exits: [*Mat] / *Min x2) -10/Mines -10/Subcaves History --------- Turn | Location | Event 4 | -11/Scrapyard | Discovered new exit (range 14) 230 | -11/Scrapyard | Entered Materials 301 | -10/Materials | Build established: Mutant 363 | -10/Materials | Discovered new exit (range 9) 687 | -10/Materials | Discovered new exit (range 16) 845 | -10/Materials | Build established: Scavenger-Mutant 908 | -10/Materials | Identified exit to Mines 1259 | -10/Materials | Entered Mines 1558 | -10/Mines | Discovered new exit (range 9) 1613 | -10/Mines | Entered Subcaves 1621 | -10/Subcaves | Learned 2 Materials zone layouts 1731 | -10/Subcaves | Learned 2 Materials zone layouts 1805 | -10/Subcaves | Core integrity fell below 50% 1824 | -10/Subcaves | Lost 3 parts (1p1n1w) 1835 | -10/Subcaves | Core integrity fell below 20% 1881 | -10/Subcaves | Lost 3 parts (1n1u1w) 1937 | -10/Subcaves | Destroyed by Piercing Trap Last Messages --------------- 01795_ FT-7HU(R) affixes Scrap Shield Fragment to Scrap Shield. 01808_ Subatomizers dissect the Sub. Monowheel. 01820_ FT-7HU(R) affixes Scrap Shield Fragment to Scrap Shield. 01823_ Subatomizers dissect the Sub. Monowheel. 01836_ Aluminum Leg destroyed. 01840_ Mining Claw destroyed. 01850_ Imp. Terrain Scanner destroyed. 01853_ Destroyed Scrap Shield. 01859_ FT-7HU(R) destroyed. 01860_ Acquired 39 matter. 01863_ Subatomizers dissect the Sub. Monowheel. 01863_ Acquired 28 matter. 01876_ Subatomizers dissect the Sub. Monowheel. 01937_ Triggered Piercing Trap. 01937_ Spikes shoot up from the floor. 01937_ Critical hit (Impale). Map ----- +----------------------------------------------------+ | ?????????? ?##????#??#???#???# #### ""??????? | | ????????? ???????#???????#?## """""""""????? | | ????? ??? ??????#?#??#?###### """"#" #????? | | ???????? ??????????##??# ## """ ?????? | | ???????????#??????????## ## """"?????? | | ???????#??#?????????#??# ## #"""?????? | | ???#####???#?#?????#??### ## ##????????? | | ???# ##?#?###########?# #?????????? | | ??## ##?## ##### ## "#????????? | | ??# ### ##### ### " """??????? | | ??##### #?#?# ##? # #" ????? | | ??????# [ ##### ##?#"" ##? ????? | | ??????# #### ## #?#""" ???## ???? | | ??????## ==##??## #?##" ????????? | | ??#????## ###???# #???" ???????? | | ????????##### ####???#?# ##??# #??????? | | ???????????####????????## ##???# ??????? | | ??????????????##???#?#??## ##?????? ?????? | | ???????#??????????#???#??# ##??????? #????? | | ???????????????????????### ##??????????#????? | | ????#?????????????#????# #?? ????????????? | | ??????????????#???# ??## ###???????????????? | | ??????#??????#????# ??# #######???????????????? | | ??????????????#???# ## ## # # ????????? | | ??????????????????# #?????????? | | ??????????????????# @ #??????????? | | ??????????????????## #### ^### #### ##??????????? | | ???????????#????#???????####???#?????????????????? | | ?????????????????????????????????????????????????? | | ?????????????????????????????????????????????????? | | ?????????????????????????????????????????????????? | | ?????????????????????????????????????????????????? | | ?????????????????????????????????????????????????? | | ?????????????????????????????????????????????????? | | ?????????????????????????????????????????????????? | | ?????????????????????????????????????????????????? | | ?????????????????????????????????????????????????? | | ?????????????????????????????????????????????????? | | ?????????????????????????????????????????????????? | | ?????????????????????????????????????????????????? | | ?????????????????????????????????????????????????? | | ?????????????????????????????????????????????????? | | ?????????????????????????????????????????????????? | | ?????????????????????????????????????????????????? | | ?????????????????????????????????????????????????? | | ?????????????????????????????????????????????????? | | ?????????????????????????????????????????????????? | | ?????????????????????????????????????????????????? | | ?????????????????????????????????????????????????? | | ?????????????????????????????????????????????????? | +----------------------------------------------------+ Best States ------------- Heat Dissipation 35 Energy Generation 10 Energy Capacity 250 Matter Stores 300 Matter Capacity 300 Sight Range 16 Robot Scan Range 14 Terrain Scan Range 16 Terrain Scan Density 10 Evasion (%) 55 Recoil Reduction 2 Item Schematics ----------------- Propulsion Shielding | -10/Materials | Hacked Robot Schematics ------------------ None Fabricated ------------ Nothing Alien Tech Used ----------------- None Achievements -------------- None Challenges ------------ None Game ------ Seed MetafiberMolecularEngine Manual? 0 Play Time 00:24:24 Cumulative 25.5 hours Start 2024.06.08 @ 12:06:36 End 2024.06.08 @ 12:30:15 Sessions 1 Manual Loads 0 Difficulty Rogue Special Mode None Game No. 26 Rogue 26 Adventurer 0 Explorer 0 Win Type - Total 0 Types 0/0/0/0/0/0/0/0/0 Lore% 23 Gallery% 25 Achievement% 22 Wizard Run 0 Options --------- Layout 1 ASCII 0 Keyboard 1 Movement Numpad Keybinds 0 Fullscreen 2 Font 24/Smallcaps Map View 50x35 Zoom Use 0% Tactical HUD 1 Map Filters NONE Filters NONE Steam 1 RUN: f7b257a3-7d4d-4d8b-8809-21090e48acea